[Event "*** Titled Tuesday Blitz"]
[Site "Chess.com"]
[Date "2019.04.02"]
[Round "1"]
[White "pheonixking2000"]
[Black "pastouche06"]
[Result "1-0"]
[WhiteElo "2764"]
[BlackElo "2429"]
[TimeControl "180+2"]
[EndTime "14:10:17 PDT"]
[Termination "pheonixking2000 won by resignation"]

1. d4 {[%clk 0:03:01.6]} 1... Nf6 {[%clk 0:02:58.2]} 2. Nf3 {[%clk 0:03:02.4]}
2... d5 {[%clk 0:02:58.9]} 3. Bf4 {[%clk 0:03:03.2]} 3... e6 {[%clk 0:02:59.2]}
4. e3 {[%clk 0:03:04.6]} 4... Bd6 {[%clk 0:02:59.6]} 5. Bxd6 {[%clk 0:03:05.9]}
5... Qxd6 {[%clk 0:02:59.8]} 6. c4 {[%clk 0:03:07.8]} 6... b6 {[%clk 0:02:55.6]}
7. Nc3 {[%clk 0:03:07.8]} 7... a6 {[%clk 0:02:54]} 8. cxd5 {[%clk 0:03:07.7]}
8... exd5 {[%clk 0:02:52.5]} 9. Rc1 {[%clk 0:03:07.7]} 9... O-O {[%clk
0:02:52.2]} 10. g3 {[%clk 0:03:06.1]} 10... Nbd7 {[%clk 0:02:48.1]} 11. Bg2
{[%clk 0:03:06.4]} 11... Bb7 {[%clk 0:02:48.4]} 12. O-O {[%clk 0:03:07.3]} 12...
Rfe8 {[%clk 0:02:48.2]} 13. a3 {[%clk 0:03:04.2]} 13... c5 {[%clk 0:02:43]} 14.
dxc5 {[%clk 0:03:00.2]} 14... bxc5 {[%clk 0:02:44.9]} 15. b4 {[%clk 0:03:01.4]}
15... Rac8 {[%clk 0:02:31.8]} 16. bxc5 {[%clk 0:02:58.4]} 16... Rxc5 {[%clk
0:02:33.3]} 17. Nd4 {[%clk 0:02:59]} 17... Rec8 {[%clk 0:02:30.5]} 18. Qb3
{[%clk 0:02:59.1]} 18... R5c7 {[%clk 0:02:03.3]} 19. Nce2 {[%clk 0:02:34.3]}
19... g6 {[%clk 0:01:55.8]} 20. Bh3 {[%clk 0:02:18.6]} 20... Rxc1 {[%clk
0:01:51]} 21. Rxc1 {[%clk 0:02:18.6]} 21... Rxc1+ {[%clk 0:01:51.4]} 22. Nxc1
{[%clk 0:02:20.5]} 22... Qb6 {[%clk 0:01:45.5]} 23. Bxd7 {[%clk 0:02:11.8]}
23... Nxd7 {[%clk 0:01:38.3]} 24. Qxb6 {[%clk 0:02:12.4]} 24... Nxb6 {[%clk
0:01:40.2]} 25. Ncb3 {[%clk 0:02:14.3]} 25... Kf8 {[%clk 0:01:32.8]} 26. Kf1
{[%clk 0:02:12.1]} 26... Ke7 {[%clk 0:01:32.3]} 27. Ke2 {[%clk 0:02:13.2]} 27...
Kd6 {[%clk 0:01:29.6]} 28. Nf3 {[%clk 0:01:56.1]} 28... f6 {[%clk 0:01:24.3]}
29. Ne1 {[%clk 0:01:52.8]} 29... Nc4 {[%clk 0:01:23.4]} 30. Nc2 {[%clk 0:01:54]}
30... Bc6 {[%clk 0:01:20.8]} 31. Nbd4 {[%clk 0:01:54.9]} 31... Bd7 {[%clk
0:01:14.8]} 32. h4 {[%clk 0:01:54.6]} 32... Kc5 {[%clk 0:01:08.9]} 33. Kd3
{[%clk 0:01:55]} 33... Ne5+ {[%clk 0:01:09.2]} 34. Kc3 {[%clk 0:01:52.7]} 34...
Ng4 {[%clk 0:01:09]} 35. f3 {[%clk 0:01:54]} 35... Ne5 {[%clk 0:01:08.3]} 36.
Nb4 {[%clk 0:01:55.4]} 36... a5 {[%clk 0:01:06.1]} 37. Nb3+ {[%clk 0:01:53.6]}
37... Kd6 {[%clk 0:01:01.6]} 38. Nxa5 {[%clk 0:01:48.4]} 38... Nxf3 {[%clk
0:01:02.5]} 39. Nb7+ {[%clk 0:01:48.1]} 39... Ke5 {[%clk 0:01:02.3]} 40. Nc5
{[%clk 0:01:49.3]} 40... Bb5 {[%clk 0:00:47.2]} 41. a4 {[%clk 0:01:49.5]} 41...
Bc4 {[%clk 0:00:47.3]} 42. Nd7+ {[%clk 0:01:31.5]} 42... Kf5 {[%clk 0:00:28.4]}
43. Nb6 {[%clk 0:01:24.3]} 43... Bf1 {[%clk 0:00:25.4]} 44. N4xd5 {[%clk
0:01:23.1]} 44... Ke4 {[%clk 0:00:24.9]} 45. Nxf6+ {[%clk 0:01:22]} 45... Kxe3
{[%clk 0:00:26.2]} 46. a5 {[%clk 0:01:13.9]} 46... Ba6 {[%clk 0:00:20.1]} 47.
Nbd5+ {[%clk 0:01:12.7]} 47... Kf2 {[%clk 0:00:20.6]} 48. Ne4+ {[%clk 0:01:14]}
48... Kg2 {[%clk 0:00:20.8]} 49. Nc5 {[%clk 0:01:13.1]} 49... Bc8 {[%clk
0:00:19.7]} 50. Ne7 {[%clk 0:01:04.7]} 50... Bg4 {[%clk 0:00:07.8]} 51. Nc6
{[%clk 0:01:01.4]} 51... Bc8 {[%clk 0:00:06.9]} 52. Ne7 {[%clk 0:00:57.5]} 52...
Bg4 {[%clk 0:00:07.2]} 53. a6 {[%clk 0:00:57.3]} 53... Ne5 {[%clk 0:00:08.2]}
54. Kd4 {[%clk 0:00:56.9]} 54... Nf7 {[%clk 0:00:08.5]} 55. a7 {[%clk
0:00:55.5]} 55... Bf3 {[%clk 0:00:09.5]} 56. Nd5 {[%clk 0:00:56.8]} 1-0

[Event "*** Titled Tuesday Blitz"]
[Site "Chess.com"]
[Date "2019.04.02"]
[Round "1"]
[White "HiHaruka"]
[Black "RitvarsReimanis"]
[Result "0-1"]
[WhiteElo "2246"]
[BlackElo "2574"]
[TimeControl "180+2"]
[EndTime "14:10:17 PDT"]
[Termination "RitvarsReimanis won by resignation"]

1. d4 {[%clk 0:02:59.6]} 1... Nf6 {[%clk 0:03:00.2]} 2. c4 {[%clk 0:02:59.6]}
2... e6 {[%clk 0:03:01.1]} 3. Nf3 {[%clk 0:02:58.5]} 3... d5 {[%clk 0:03:02.2]}
4. g3 {[%clk 0:02:58.9]} 4... Be7 {[%clk 0:03:03.2]} 5. Bg2 {[%clk 0:02:59.5]}
5... O-O {[%clk 0:03:04.6]} 6. O-O {[%clk 0:02:59.9]} 6... dxc4 {[%clk
0:03:05.8]} 7. Ne5 {[%clk 0:03:00.1]} 7... Nc6 {[%clk 0:03:06.9]} 8. Nxc6 {[%clk
0:03:01]} 8... bxc6 {[%clk 0:03:08.8]} 9. e3 {[%clk 0:02:59.9]} 9... Rb8 {[%clk
0:03:04.9]} 10. Qa4 {[%clk 0:02:53.5]} 10... c5 {[%clk 0:03:05.9]} 11. Rd1
{[%clk 0:02:46.8]} 11... cxd4 {[%clk 0:03:04.6]} 12. Rxd4 {[%clk 0:02:45.4]}
12... Bd6 {[%clk 0:03:05.7]} 13. Nc3 {[%clk 0:02:37.8]} 13... Bb7 {[%clk
0:03:00.8]} 14. Qxc4 {[%clk 0:02:29.7]} 14... Bxg2 {[%clk 0:02:59.3]} 15. Kxg2
{[%clk 0:02:31.6]} 15... Qe7 {[%clk 0:02:44.9]} 16. a3 {[%clk 0:01:52]} 16... a5
{[%clk 0:02:24.7]} 17. Nb5 {[%clk 0:01:40.6]} 17... Bc5 {[%clk 0:02:19.3]} 18.
Rd3 {[%clk 0:01:30]} 18... Nd7 {[%clk 0:01:48.8]} 19. Rc3 {[%clk 0:01:06.3]}
19... Bb6 {[%clk 0:01:11.3]} 20. b4 {[%clk 0:00:45.1]} 20... axb4 {[%clk
0:01:02.9]} 21. axb4 {[%clk 0:00:47]} 21... Ne5 {[%clk 0:01:03.8]} 22. Qe4
{[%clk 0:00:34.9]} 22... f6 {[%clk 0:00:56.4]} 23. Ba3 {[%clk 0:00:34.6]} 23...
Nf7 {[%clk 0:00:46.9]} 24. Nd4 {[%clk 0:00:34.5]} 24... Bxd4 {[%clk 0:00:45.7]}
25. Qxd4 {[%clk 0:00:30.8]} 25... Rfd8 {[%clk 0:00:46.5]} 26. Qc5 {[%clk
0:00:30.4]} 26... Qxc5 {[%clk 0:00:36.4]} 27. Rxc5 {[%clk 0:00:32.3]} 27... Rd7
{[%clk 0:00:37]} 28. Rac1 {[%clk 0:00:32.9]} 28... Rb7 {[%clk 0:00:38.2]} 29.
Rc6 {[%clk 0:00:21.9]} 29... Nd6 {[%clk 0:00:37.2]} 30. Rd1 {[%clk 0:00:18.2]}
30... Rb5 {[%clk 0:00:29.3]} 31. Rc5 {[%clk 0:00:14.3]} 31... Rb6 {[%clk
0:00:26.8]} 32. b5 {[%clk 0:00:09.9]} 32... Kf7 {[%clk 0:00:23.8]} 33. Rc6
{[%clk 0:00:10.6]} 33... Rxb5 {[%clk 0:00:23.3]} 34. Bxd6 {[%clk 0:00:11.1]}
34... Rb7 {[%clk 0:00:16.6]} 35. Rxc7 {[%clk 0:00:08.3]} 35... Rbxc7 {[%clk
0:00:16.8]} 36. Bxc7 {[%clk 0:00:10.2]} 36... Rxd1 {[%clk 0:00:18.4]} 37. Ba5
{[%clk 0:00:10.1]} 37... e5 {[%clk 0:00:19.3]} 38. Bb6 {[%clk 0:00:10.3]} 38...
e4 {[%clk 0:00:20.1]} 39. Bd4 {[%clk 0:00:10.9]} 39... Ke6 {[%clk 0:00:20.9]}
40. h3 {[%clk 0:00:09.5]} 40... g6 {[%clk 0:00:21.8]} 41. g4 {[%clk 0:00:10.7]}
41... f5 {[%clk 0:00:22.3]} 42. Kg3 {[%clk 0:00:12.1]} 42... Rg1+ {[%clk
0:00:21.7]} 43. Kf4 {[%clk 0:00:12]} 43... Rh1 {[%clk 0:00:20.7]} 44. Kg3 {[%clk
0:00:11.3]} 44... Kd5 {[%clk 0:00:21.3]} 45. gxf5 {[%clk 0:00:04.4]} 45... gxf5
{[%clk 0:00:23.2]} 46. h4 {[%clk 0:00:05.6]} 46... Ke6 {[%clk 0:00:24.1]} 47.
Bc5 {[%clk 0:00:05.5]} 47... Rg1+ {[%clk 0:00:24.8]} 48. Kh3 {[%clk 0:00:06.7]}
48... Rg8 {[%clk 0:00:23.7]} 49. Bb6 {[%clk 0:00:06.3]} 49... Kd5 {[%clk
0:00:24.1]} 50. h5 {[%clk 0:00:05.5]} 50... Rg4 {[%clk 0:00:24.4]} 51. Bd8
{[%clk 0:00:05.8]} 51... Ke6 {[%clk 0:00:22.6]} 52. Bb6 {[%clk 0:00:06.2]} 52...
Kf7 {[%clk 0:00:23.8]} 53. Bd4 {[%clk 0:00:06.3]} 53... Ke6 {[%clk 0:00:23.8]}
54. Bc5 {[%clk 0:00:06.4]} 54... Kd5 {[%clk 0:00:24.8]} 55. Bb6 {[%clk
0:00:07.1]} 55... Kc4 {[%clk 0:00:26.1]} 56. Bd4 {[%clk 0:00:04.3]} 56... Kd3
{[%clk 0:00:27.4]} 57. Bb6 {[%clk 0:00:03]} 57... Ke2 {[%clk 0:00:28.8]} 58. Bc5
{[%clk 0:00:03.6]} 58... Kxf2 {[%clk 0:00:28.2]} 59. Bb6 {[%clk 0:00:04.6]}
59... Kf3 {[%clk 0:00:28]} 60. Bc5 {[%clk 0:00:04.7]} 60... Rg1 {[%clk
0:00:28.9]} 61. Kh2 {[%clk 0:00:05.6]} 61... Rg5 {[%clk 0:00:30.3]} 62. Bd4
{[%clk 0:00:05.5]} 62... Rxh5+ {[%clk 0:00:30.8]} 63. Kg1 {[%clk 0:00:07.4]}
63... Rg5+ {[%clk 0:00:31.1]} 0-1

[Event "*** Titled Tuesday Blitz"]
[Site "Chess.com"]
[Date "2019.04.02"]
[Round "1"]
[White "r31415"]
[Black "Tiqr777"]
[Result "0-1"]
[WhiteElo "2328"]
[BlackElo "2642"]
[TimeControl "180+2"]
[EndTime "14:10:23 PDT"]
[Termination "Tiqr777 won by resignation"]

1. e4 {[%clk 0:02:44.5]} 1... c5 {[%clk 0:02:59.8]} 2. Nf3 {[%clk 0:02:45.1]}
2... d6 {[%clk 0:02:57.5]} 3. d4 {[%clk 0:02:45.8]} 3... cxd4 {[%clk 0:02:57.3]}
4. Nxd4 {[%clk 0:02:47.7]} 4... Nf6 {[%clk 0:02:57.7]} 5. Nc3 {[%clk 0:02:48.5]}
5... a6 {[%clk 0:02:58.8]} 6. h3 {[%clk 0:02:49.7]} 6... e5 {[%clk 0:02:59.5]}
7. Nde2 {[%clk 0:02:49.4]} 7... Be6 {[%clk 0:03:00]} 8. g4 {[%clk 0:02:50.1]}
8... h6 {[%clk 0:03:00.2]} 9. Bg2 {[%clk 0:02:51.3]} 9... Be7 {[%clk 0:03:01.4]}
10. O-O {[%clk 0:02:52.7]} 10... Nbd7 {[%clk 0:03:02.7]} 11. Be3 {[%clk
0:02:53.4]} 11... Nb6 {[%clk 0:03:02]} 12. b3 {[%clk 0:02:51.4]} 12... Qc7
{[%clk 0:02:54.5]} 13. Qd2 {[%clk 0:02:52.2]} 13... Rc8 {[%clk 0:02:52]} 14.
Rac1 {[%clk 0:02:50.1]} 14... O-O {[%clk 0:02:52.1]} 15. Rfd1 {[%clk 0:01:58.5]}
15... Rfd8 {[%clk 0:02:49.8]} 16. Ng3 {[%clk 0:01:46.3]} 16... Nbd7 {[%clk
0:02:32.7]} 17. Nd5 {[%clk 0:01:35]} 17... Bxd5 {[%clk 0:02:33.3]} 18. exd5
{[%clk 0:01:36.2]} 18... Qc3 {[%clk 0:02:33.1]} 19. Qe2 {[%clk 0:01:10.7]} 19...
Bf8 {[%clk 0:02:31.8]} 20. Nf5 {[%clk 0:01:08.4]} 20... Kh7 {[%clk 0:02:17.5]}
21. Kh2 {[%clk 0:01:01.4]} 21... g6 {[%clk 0:02:17.7]} 22. Nxh6 {[%clk
0:00:43.9]} 22... Bxh6 {[%clk 0:02:16.4]} 23. g5 {[%clk 0:00:45.1]} 23... Bg7
{[%clk 0:02:16.4]} 24. gxf6 {[%clk 0:00:46.4]} 24... Nxf6 {[%clk 0:02:18]} 25.
Rd3 {[%clk 0:00:37.9]} 25... Qc7 {[%clk 0:02:12.4]} 26. Bg5 {[%clk 0:00:38.7]}
26... Re8 {[%clk 0:02:03.1]} 27. h4 {[%clk 0:00:36.8]} 27... Nh5 {[%clk
0:02:03.1]} 28. c4 {[%clk 0:00:28.3]} 28... f6 {[%clk 0:01:59.7]} 29. Be4 {[%clk
0:00:21.4]} 29... f5 {[%clk 0:01:14.5]} 30. Bg2 {[%clk 0:00:22.4]} 30... e4
{[%clk 0:01:14.1]} 31. Re3 {[%clk 0:00:23.8]} 31... Qf7 {[%clk 0:01:11.3]} 32.
f4 {[%clk 0:00:19.5]} 32... Bh6 {[%clk 0:01:02.5]} 33. Bh3 {[%clk 0:00:17.6]}
33... Bxg5 {[%clk 0:01:03.2]} 34. hxg5 {[%clk 0:00:18.9]} 34... Nxf4 {[%clk
0:01:03.4]} 35. Qf2 {[%clk 0:00:17.6]} 35... Nh5 {[%clk 0:01:02.3]} 36. Bg4
{[%clk 0:00:14.5]} 36... Kg7 {[%clk 0:01:01.5]} 37. Bxh5 {[%clk 0:00:05.4]}
37... Rh8 {[%clk 0:01:02.6]} 38. Rg3 {[%clk 0:00:07.3]} 38... Rxh5+ {[%clk
0:01:02.8]} 39. Kg2 {[%clk 0:00:09.2]} 39... Rch8 {[%clk 0:01:03.4]} 40. Qb2+
{[%clk 0:00:11.1]} 40... Kg8 {[%clk 0:01:03.3]} 41. Kf2 {[%clk 0:00:10.2]} 41...
Rh2+ {[%clk 0:01:03.6]} 42. Rg2 {[%clk 0:00:11.3]} 42... Rxg2+ {[%clk
0:01:04.8]} 43. Kxg2 {[%clk 0:00:13.2]} 43... Qg7 {[%clk 0:01:06.3]} 44. Qxg7+
{[%clk 0:00:04.3]} 44... Kxg7 {[%clk 0:01:07.8]} 45. c5 {[%clk 0:00:05.7]} 45...
dxc5 {[%clk 0:00:39.5]} 46. Rxc5 {[%clk 0:00:06.2]} 46... Rh5 {[%clk 0:00:40.9]}
47. Rc7+ {[%clk 0:00:06.7]} 47... Kf8 {[%clk 0:00:42]} 48. d6 {[%clk 0:00:05.5]}
48... Rxg5+ {[%clk 0:00:43.1]} 49. Kf2 {[%clk 0:00:07]} 49... Ke8 {[%clk
0:00:44.2]} 50. Rxb7 {[%clk 0:00:06.9]} 50... f4 {[%clk 0:00:45.4]} 51. Re7+
{[%clk 0:00:07]} 51... Kd8 {[%clk 0:00:46]} 52. Rxe4 {[%clk 0:00:08.9]} 52...
Rf5 {[%clk 0:00:46.9]} 53. Kf3 {[%clk 0:00:10]} 53... g5 {[%clk 0:00:48.1]} 54.
Kg4 {[%clk 0:00:10.9]} 54... Rd5 {[%clk 0:00:49]} 55. Ra4 {[%clk 0:00:07.9]}
55... a5 {[%clk 0:00:49.3]} 56. b4 {[%clk 0:00:03.8]} 56... axb4 {[%clk
0:00:49.2]} 57. Rxb4 {[%clk 0:00:05.7]} 57... Kd7 {[%clk 0:00:50.7]} 58. Rb6
{[%clk 0:00:06.5]} 58... Rxd6 {[%clk 0:00:51.5]} 59. Rb7+ {[%clk 0:00:05.5]}
59... Kc6 {[%clk 0:00:52.2]} 60. Rb8 {[%clk 0:00:06.3]} 60... Rd5 {[%clk
0:00:53.2]} 61. Rc8+ {[%clk 0:00:06]} 61... Kb5 {[%clk 0:00:53.1]} 62. Rb8+
{[%clk 0:00:06.6]} 62... Ka4 {[%clk 0:00:53.8]} 63. Ra8+ {[%clk 0:00:07.9]}
63... Kb4 {[%clk 0:00:54.8]} 64. a3+ {[%clk 0:00:07.8]} 64... Kb3 {[%clk
0:00:55.7]} 65. Kf3 {[%clk 0:00:08.1]} 65... Re5 {[%clk 0:00:55.1]} 66. a4
{[%clk 0:00:08.2]} 66... Re3+ {[%clk 0:00:55.9]} 67. Kf2 {[%clk 0:00:07.4]}
67... g4 {[%clk 0:00:56.6]} 68. a5 {[%clk 0:00:09]} 68... g3+ {[%clk 0:00:57]}
69. Kf1 {[%clk 0:00:05.2]} 69... f3 {[%clk 0:00:58.1]} 70. Rf8 {[%clk
0:00:03.9]} 70... g2+ {[%clk 0:00:57.2]} 71. Kg1 {[%clk 0:00:04.4]} 71... Re1+
{[%clk 0:00:57.4]} 0-1

[Event "*** Titled Tuesday Blitz"]
[Site "Chess.com"]
[Date "2019.04.02"]
[Round "1"]
[White "saraswathii"]
[Black "sergeikim"]
[Result "0-1"]
[WhiteElo "2241"]
[BlackElo "2574"]
[TimeControl "180+2"]
[EndTime "14:10:26 PDT"]
[Termination "sergeikim won by resignation"]

1. d4 {[%clk 0:02:58.3]} 1... Nf6 {[%clk 0:02:59.7]} 2. Bf4 {[%clk 0:02:58.8]}
2... g6 {[%clk 0:03:00.6]} 3. e3 {[%clk 0:02:54.6]} 3... Bg7 {[%clk 0:03:01.4]}
4. Nf3 {[%clk 0:02:55.4]} 4... O-O {[%clk 0:03:02.3]} 5. c4 {[%clk 0:02:56.6]}
5... d6 {[%clk 0:03:03.3]} 6. Nc3 {[%clk 0:02:57.3]} 6... Nbd7 {[%clk
0:03:04.1]} 7. Be2 {[%clk 0:02:57.8]} 7... b6 {[%clk 0:03:04.7]} 8. O-O {[%clk
0:02:58.4]} 8... Bb7 {[%clk 0:03:05.6]} 9. a4 {[%clk 0:02:59.7]} 9... a5 {[%clk
0:03:05.7]} 10. h3 {[%clk 0:03:00.9]} 10... Ne4 {[%clk 0:03:06.1]} 11. Nxe4
{[%clk 0:03:01.1]} 11... Bxe4 {[%clk 0:03:06.3]} 12. Nd2 {[%clk 0:03:02.7]}
12... Bb7 {[%clk 0:03:06.5]} 13. Bf3 {[%clk 0:03:03.7]} 13... Qc8 {[%clk
0:03:07.4]} 14. Bxb7 {[%clk 0:02:50.7]} 14... Qxb7 {[%clk 0:03:08.2]} 15. Qf3
{[%clk 0:02:51.1]} 15... Qxf3 {[%clk 0:03:07.8]} 16. Nxf3 {[%clk 0:02:53]} 16...
e5 {[%clk 0:03:08.7]} 17. Bg3 {[%clk 0:02:54.4]} 17... f6 {[%clk 0:03:08.1]} 18.
Rfd1 {[%clk 0:02:51.8]} 18... Rfd8 {[%clk 0:03:08.2]} 19. Rac1 {[%clk
0:02:41.9]} 19... Kf7 {[%clk 0:03:08]} 20. Nd2 {[%clk 0:02:32.2]} 20... h6
{[%clk 0:03:06.2]} 21. Nb3 {[%clk 0:02:32.3]} 21... Rab8 {[%clk 0:03:04.6]} 22.
Rd2 {[%clk 0:02:27.9]} 22... g5 {[%clk 0:03:02.3]} 23. Rcc2 {[%clk 0:02:14.3]}
23... f5 {[%clk 0:02:59.9]} 24. f3 {[%clk 0:02:13.7]} 24... f4 {[%clk 0:02:54]}
25. exf4 {[%clk 0:02:09.6]} 25... exf4 {[%clk 0:02:52.1]} 26. Bf2 {[%clk
0:02:09.9]} 26... Re8 {[%clk 0:02:51]} 27. Rd3 {[%clk 0:01:46.9]} 27... c6
{[%clk 0:02:25.3]} 28. c5 {[%clk 0:01:40.8]} 28... bxc5 {[%clk 0:02:25.6]} 29.
dxc5 {[%clk 0:01:39.8]} 29... d5 {[%clk 0:02:26.2]} 30. Nxa5 {[%clk 0:01:40]}
30... Ne5 {[%clk 0:02:25.4]} 31. Rdd2 {[%clk 0:01:29.8]} 31... Rb4 {[%clk
0:02:25.6]} 32. Re2 {[%clk 0:01:21.9]} 32... Ra8 {[%clk 0:02:20.4]} 33. Rxe5
{[%clk 0:01:15.5]} 33... Rxa5 {[%clk 0:02:14.4]} 34. Re1 {[%clk 0:01:11.4]}
34... Raxa4 {[%clk 0:02:10.3]} 35. Rce2 {[%clk 0:01:11.9]} 35... Bf6 {[%clk
0:02:10.9]} 36. Re6 {[%clk 0:01:03.8]} 36... Ra6 {[%clk 0:02:06.5]} 37. Rd6
{[%clk 0:00:59.5]} 37... Rb7 {[%clk 0:01:44.6]} 38. Kh2 {[%clk 0:00:47.1]} 38...
Re7 {[%clk 0:01:39.5]} 39. b4 {[%clk 0:00:32.7]} 39... Rxe1 {[%clk 0:01:32.4]}
40. Bxe1 {[%clk 0:00:33.1]} 40... Be5 {[%clk 0:01:26.7]} 41. Rxh6 {[%clk
0:00:30.9]} 41... Ra1 {[%clk 0:01:27.1]} 42. Bf2 {[%clk 0:00:30.1]} 42... Ra2
{[%clk 0:01:26]} 43. Bg1 {[%clk 0:00:30.6]} 43... Bf6 {[%clk 0:01:22.9]} 44. h4
{[%clk 0:00:20.8]} 44... gxh4 {[%clk 0:01:20.9]} 45. Rh7+ {[%clk 0:00:17.8]}
45... Ke6 {[%clk 0:01:09.5]} 46. Rc7 {[%clk 0:00:18.3]} 46... Ra6 {[%clk
0:01:09.2]} 47. Kh3 {[%clk 0:00:19.2]} 47... d4 {[%clk 0:01:09]} 48. Bf2 {[%clk
0:00:17.7]} 48... d3 {[%clk 0:01:09]} 49. Be1 {[%clk 0:00:18.7]} 49... Kd5
{[%clk 0:01:08.3]} 50. Rf7 {[%clk 0:00:19.1]} 50... Bd4 {[%clk 0:01:05.3]} 51.
Rxf4 {[%clk 0:00:19.5]} 51... Ra1 {[%clk 0:01:02.8]} 52. Bxh4 {[%clk 0:00:15.7]}
52... d2 {[%clk 0:01:00.5]} 53. Rxd4+ {[%clk 0:00:17.2]} 53... Kxd4 {[%clk
0:01:01.4]} 54. Bf6+ {[%clk 0:00:18.7]} 54... Kc4 {[%clk 0:01:02.3]} 55. Bxa1
{[%clk 0:00:20.6]} 55... d1=Q {[%clk 0:01:03.5]} 56. Be5 {[%clk 0:00:20.3]}
56... Qe2 {[%clk 0:01:01.1]} 57. Bd6 {[%clk 0:00:21]} 57... Kxb4 {[%clk
0:00:58.7]} 58. Kg3 {[%clk 0:00:21.9]} 58... Kc4 {[%clk 0:00:59.6]} 59. Kh3
{[%clk 0:00:14.9]} 59... Kd5 {[%clk 0:00:59.7]} 60. Kg3 {[%clk 0:00:15.9]} 60...
Ke6 {[%clk 0:00:59.9]} 61. Kf4 {[%clk 0:00:14.8]} 61... Qxg2 {[%clk 0:00:56.6]}
62. Ke4 {[%clk 0:00:14.2]} 62... Qh3 {[%clk 0:00:52.8]} 63. f4 {[%clk
0:00:14.1]} 63... Qf5+ {[%clk 0:00:50.9]} 64. Ke3 {[%clk 0:00:14]} 64... Kd5
{[%clk 0:00:51.5]} 65. Kf3 {[%clk 0:00:15.1]} 65... Kd4 {[%clk 0:00:51.9]} 66.
Kg3 {[%clk 0:00:15.2]} 66... Ke3 {[%clk 0:00:52.2]} 67. Be5 {[%clk 0:00:16]}
67... Qg6+ {[%clk 0:00:49.7]} 0-1

[Event "*** Titled Tuesday Blitz"]
[Site "Chess.com"]
[Date "2019.04.02"]
[Round "1"]
[White "ilm2034"]
[Black "Dare-Dare"]
[Result "0-1"]
[WhiteElo "2452"]
[BlackElo "2126"]
[TimeControl "180+2"]
[EndTime "14:10:31 PDT"]
[Termination "Dare-Dare won by checkmate"]

1. d4 {[%clk 0:02:51.1]} 1... e6 {[%clk 0:02:26.1]} 2. c4 {[%clk 0:02:50.5]}
2... f5 {[%clk 0:02:26]} 3. g3 {[%clk 0:02:51.4]} 3... Nf6 {[%clk 0:02:27.6]} 4.
Bg2 {[%clk 0:02:52.4]} 4... d5 {[%clk 0:02:29.5]} 5. Nf3 {[%clk 0:02:53]} 5...
c6 {[%clk 0:02:30.7]} 6. O-O {[%clk 0:02:53.1]} 6... Bd6 {[%clk 0:02:32.1]} 7.
Nc3 {[%clk 0:02:52.1]} 7... O-O {[%clk 0:02:32.9]} 8. Bf4 {[%clk 0:02:52.5]}
8... Qc7 {[%clk 0:02:33.2]} 9. Bxd6 {[%clk 0:02:51.3]} 9... Qxd6 {[%clk
0:02:35.1]} 10. Ne5 {[%clk 0:02:52.3]} 10... Nbd7 {[%clk 0:02:35.4]} 11. f4
{[%clk 0:02:51.8]} 11... Ne4 {[%clk 0:02:33.5]} 12. Nxe4 {[%clk 0:02:51.2]}
12... fxe4 {[%clk 0:02:26.5]} 13. Qb3 {[%clk 0:02:50.2]} 13... b6 {[%clk
0:02:22.2]} 14. cxd5 {[%clk 0:02:45.3]} 14... cxd5 {[%clk 0:02:22.1]} 15. Rac1
{[%clk 0:02:45.7]} 15... Bb7 {[%clk 0:02:22.5]} 16. e3 {[%clk 0:02:45.6]} 16...
Nxe5 {[%clk 0:02:23.1]} 17. dxe5 {[%clk 0:02:43.5]} 17... Qd7 {[%clk 0:02:23.1]}
18. Rfd1 {[%clk 0:02:42.1]} 18... Qe7 {[%clk 0:02:22.4]} 19. Qa4 {[%clk
0:02:38.4]} 19... a6 {[%clk 0:02:19.5]} 20. Qb3 {[%clk 0:02:36.5]} 20... b5
{[%clk 0:02:15.1]} 21. a4 {[%clk 0:02:37.4]} 21... b4 {[%clk 0:02:12.8]} 22. a5
{[%clk 0:02:36.8]} 22... Rac8 {[%clk 0:02:12.3]} 23. h3 {[%clk 0:02:31.3]} 23...
Rxc1 {[%clk 0:02:03.3]} 24. Rxc1 {[%clk 0:02:30.7]} 24... Rc8 {[%clk 0:02:05.2]}
25. Rxc8+ {[%clk 0:02:29.1]} 25... Bxc8 {[%clk 0:02:07.1]} 26. Qc2 {[%clk
0:02:29.5]} 26... Bb7 {[%clk 0:02:06.8]} 27. Bf1 {[%clk 0:02:22.2]} 27... Kf7
{[%clk 0:01:59.7]} 28. Kg2 {[%clk 0:02:21.7]} 28... Ke8 {[%clk 0:01:54.4]} 29.
Be2 {[%clk 0:02:22.1]} 29... Kd8 {[%clk 0:01:53.9]} 30. Bg4 {[%clk 0:02:17.2]}
30... Bc8 {[%clk 0:01:53.8]} 31. Qc6 {[%clk 0:02:17.3]} 31... Qc7 {[%clk
0:01:41.6]} 32. Qa4 {[%clk 0:02:11]} 32... Qc5 {[%clk 0:01:37.2]} 33. Qb3 {[%clk
0:02:04.7]} 33... Qxa5 {[%clk 0:01:29]} 34. Be2 {[%clk 0:01:56.4]} 34... Qb6
{[%clk 0:01:22.8]} 35. g4 {[%clk 0:01:56.1]} 35... a5 {[%clk 0:01:18]} 36. f5
{[%clk 0:01:56.3]} 36... Ke7 {[%clk 0:01:10.7]} 37. Kf2 {[%clk 0:01:39.6]} 37...
Qc5 {[%clk 0:01:08]} 38. fxe6 {[%clk 0:01:22.2]} 38... Bxe6 {[%clk 0:01:09.9]}
39. Qd1 {[%clk 0:01:22.9]} 39... Bd7 {[%clk 0:00:54.2]} 40. Qd2 {[%clk 0:01:06]}
40... a4 {[%clk 0:00:49.5]} 41. Bd1 {[%clk 0:01:03.3]} 41... Bb5 {[%clk
0:00:43.6]} 42. Kg3 {[%clk 0:01:00.3]} 42... Ke6 {[%clk 0:00:39.5]} 43. Qf2
{[%clk 0:01:00.6]} 43... Kxe5 {[%clk 0:00:33.8]} 44. Qf5+ {[%clk 0:00:57.9]}
44... Kd6 {[%clk 0:00:34.7]} 45. Qf8+ {[%clk 0:00:48.6]} 45... Kc6 {[%clk
0:00:34.5]} 46. Qa8+ {[%clk 0:00:45.5]} 46... Kb6 {[%clk 0:00:34.3]} 47. Kf2
{[%clk 0:00:41.7]} 47... a3 {[%clk 0:00:30.4]} 48. bxa3 {[%clk 0:00:40.5]} 48...
bxa3 {[%clk 0:00:31]} 49. Qb8+ {[%clk 0:00:41.8]} 49... Ka5 {[%clk 0:00:30]} 50.
Qe5 {[%clk 0:00:35.9]} 50... a2 {[%clk 0:00:24.9]} 51. Qb2 {[%clk 0:00:36]}
51... Bc4 {[%clk 0:00:21.8]} 52. Qc3+ {[%clk 0:00:37.2]} 52... Qb4 {[%clk
0:00:22.4]} 53. Qd4 {[%clk 0:00:35.5]} 53... Qb1 {[%clk 0:00:20]} 54. Qa7+
{[%clk 0:00:36.6]} 54... Kb4 {[%clk 0:00:21.2]} 55. Qb6+ {[%clk 0:00:36.8]}
55... Ka3 {[%clk 0:00:20.7]} 56. Qa5+ {[%clk 0:00:37.1]} 56... Kb2 {[%clk
0:00:21.9]} 57. Qb4+ {[%clk 0:00:37.3]} 57... Kc1 {[%clk 0:00:22.8]} 58. Qe1
{[%clk 0:00:23.1]} 58... a1=Q {[%clk 0:00:19.4]} 59. Ba4+ {[%clk 0:00:18.3]}
59... Kb2 {[%clk 0:00:18.7]} 60. Qb4+ {[%clk 0:00:19.1]} 60... Ka2 {[%clk
0:00:17.2]} 61. Qd2+ {[%clk 0:00:17.7]} 61... Qab2 {[%clk 0:00:17.8]} 62. Qxb2+
{[%clk 0:00:18.2]} 62... Qxb2+ {[%clk 0:00:18.7]} 63. Kg3 {[%clk 0:00:19.9]}
63... Qe2 {[%clk 0:00:19]} 64. Bd7 {[%clk 0:00:20.2]} 64... Qxe3+ {[%clk
0:00:19.5]} 65. Kh4 {[%clk 0:00:21.6]} 65... Qh6+ {[%clk 0:00:19.2]} 66. Kg3
{[%clk 0:00:22.7]} 66... Qd6+ {[%clk 0:00:20.4]} 67. Kh4 {[%clk 0:00:24.2]}
67... Qxd7 {[%clk 0:00:22.3]} 68. g5 {[%clk 0:00:25.8]} 68... e3 {[%clk
0:00:23.4]} 69. Kh5 {[%clk 0:00:27]} 69... g6+ {[%clk 0:00:23.7]} 70. Kh6 {[%clk
0:00:27.4]} 70... Qxh3+ {[%clk 0:00:24.5]} 71. Kg7 {[%clk 0:00:28.1]} 71... e2
{[%clk 0:00:25.5]} 72. Kf7 {[%clk 0:00:29.7]} 72... e1=Q {[%clk 0:00:25.8]} 73.
Kg7 {[%clk 0:00:31.6]} 73... Qe7+ {[%clk 0:00:26.2]} 74. Kh8 {[%clk 0:00:32.9]}
74... Qf8# {[%clk 0:00:26.8]} 0-1